[Event "NJSK 2023 Jeugd B"]
[Site "Almelo, Netherlands"]
[Date "2023.05.01"]
[Round "2.3"]
[White "Van Egmond, Tom"]
[Black "Niemeijer, Leon"]
[Result "0-1"]
[TimeControl "90min/40moves + 30min + 30sec/move"]
[WhiteElo "1767"]
[BlackElo "1903"]

1. d4 {[%clk 01:30:58]} {[%emt 00:00:01]} Nf6 {[%clk 01:30:38]} {[%emt
00:00:22]} 2. Bg5 {[%clk 01:31:22]} {[%emt 00:00:05]} g6 {[%clk 01:29:34]}
{[%emt 00:01:36]} 3. Bxf6 {[%clk 01:31:44]} {[%emt 00:00:07]} exf6 {[%clk
01:30:02]} {[%emt 00:00:03]} 4. e3 {[%clk 01:32:08]} {[%emt 00:00:06]} Bg7
{[%clk 01:30:14]} {[%emt 00:00:18]} 5. g3 {[%clk 01:32:31]} {[%emt 00:00:06]}
d5 {[%clk 01:27:28]} {[%emt 00:03:16]} 6. Bg2 {[%clk 01:32:51]} {[%emt
00:00:11]} c6 {[%clk 01:25:19]} {[%emt 00:02:40]} 7. Ne2 {[%clk 01:33:12]}
{[%emt 00:00:08]} f5 {[%clk 01:08:48]} {[%emt 00:17:01]} 8. b3 {[%clk
01:32:43]} {[%emt 00:00:58]} Be6 {[%clk 01:05:40]} {[%emt 00:03:39]} 9. Nd2
{[%clk 01:30:24]} {[%emt 00:02:48]} Nd7 {[%clk 01:01:43]} {[%emt 00:04:28]} 10.
O-O {[%clk 01:27:31]} {[%emt 00:03:23]} O-O {[%clk 00:59:39]} {[%emt 00:02:34]}
11. c4 {[%clk 01:27:13]} {[%emt 00:00:47]} Nb6 {[%clk 00:50:36]} {[%emt
00:09:33]} 12. c5 {[%clk 01:25:39]} {[%emt 00:02:05]} Nd7 {[%clk 00:50:47]}
{[%emt 00:00:18]} 13. b4 {[%clk 01:24:00]} {[%emt 00:02:10]} a5 {[%clk
00:44:46]} {[%emt 00:06:31]} 14. a3 {[%clk 01:11:22]} {[%emt 00:13:07]} b5
{[%clk 00:35:49]} {[%emt 00:09:28]} 15. cxb6 {[%clk 00:52:27]} {[%emt
00:19:25]} axb4 {[%clk 00:35:08]} {[%emt 00:01:11]} 16. axb4 {[%clk 00:45:10]}
{[%emt 00:07:46]} Qxb6 {[%clk 00:34:46]} {[%emt 00:00:53]} 17. Qb3 {[%clk
00:39:31]} {[%emt 00:06:08]} Rxa1 {[%clk 00:34:41]} {[%emt 00:00:36]} 18. Rxa1
{[%clk 00:37:38]} {[%emt 00:02:23]} Rb8 {[%clk 00:35:07]} {[%emt 00:00:04]} 19.
Rb1 {[%clk 00:35:29]} {[%emt 00:02:39]} Bf8 {[%clk 00:29:29]} {[%emt 00:06:08]}
20. Qa4 {[%clk 00:22:20]} {[%emt 00:13:38]} Qb5 {[%clk 00:24:53]} {[%emt
00:05:06]} 21. Qxb5 {[%clk 00:12:32]} {[%emt 00:10:18]} Rxb5 {[%clk 00:25:18]}
{[%emt 00:00:05]} 22. Nf4 {[%clk 00:11:21]} {[%emt 00:01:41]} Rxb4 {[%clk
00:22:31]} {[%emt 00:03:18]} 23. Rc1 {[%clk 00:09:52]} {[%emt 00:01:58]} Rb6
{[%clk 00:21:20]} {[%emt 00:01:42]} 24. Nd3 {[%clk 00:09:19]} {[%emt 00:01:02]}
Bd6 {[%clk 00:18:41]} {[%emt 00:03:09]} 25. Nf3 {[%clk 00:07:20]} {[%emt
00:02:30]} h6 {[%clk 00:16:07]} {[%emt 00:03:04]} 26. Bf1 {[%clk 00:06:47]}
{[%emt 00:01:02]} f6 {[%clk 00:10:49]} {[%emt 00:05:48]} 27. Be2 {[%clk
00:06:14]} {[%emt 00:01:03]} Kf7 {[%clk 00:09:03]} {[%emt 00:02:16]} 28. Bd1
{[%clk 00:05:17]} {[%emt 00:01:27]} Nb8 {[%clk 00:06:12]} {[%emt 00:03:22]} 29.
Nd2 {[%clk 00:04:56]} {[%emt 00:00:50]} Bd7 {[%clk 00:04:32]} {[%emt 00:02:10]}
30. Nb3 {[%clk 00:04:40]} {[%emt 00:00:47]} Na6 {[%clk 00:04:14]} {[%emt
00:00:48]} 31. Na5 {[%clk 00:04:02]} {[%emt 00:01:08]} Ke7 {[%clk 00:02:37]}
{[%emt 00:02:07]} 32. Ba4 {[%clk 00:03:02]} {[%emt 00:01:29]} Nb8 {[%clk
00:02:49]} {[%emt 00:00:18]} 33. Nb3 {[%clk 00:02:56]} {[%emt 00:00:36]} Na6
{[%clk 00:01:33]} {[%emt 00:01:46]} 34. Na5 {[%clk 00:02:22]} {[%emt 00:01:04]}
Nb8 {[%clk 00:01:59]} {[%emt 00:00:04]} 35. Nb3 {[%clk 00:02:03]} {[%emt
00:00:50]} Kd8 {[%clk 00:01:50]} {[%emt 00:00:39]} 36. Ndc5 {[%clk 00:00:55]}
{[%emt 00:01:37]} Bxc5 {[%clk 00:01:53]} {[%emt 00:00:27]} 37. Nxc5 {[%clk
00:01:16]} {[%emt 00:00:09]} Na6 {[%clk 00:02:12]} {[%emt 00:00:11]} 38. Kg2
{[%clk 00:00:47]} {[%emt 00:00:59]} Nxc5 {[%clk 00:02:15]} {[%emt 00:00:28]} 39.
Rxc5 {[%clk 00:01:00]} {[%emt 00:00:16]} Kc7 {[%clk 00:02:14]} {[%emt
00:00:31]} 40. Bd1 {[%clk 00:00:53]} {[%emt 00:00:37]} Bc8 {[%clk 00:01:51]}
{[%emt 00:00:52]} 41. Bf3 {[%clk 00:22:31]} {[%emt 00:08:53]} Be6 {[%clk
00:27:56]} {[%emt 00:04:25]} 42. Be2 {[%clk 00:21:59]} {[%emt 00:01:02]} h5
{[%emt 00:04:31]} 43. Ra5 {[%clk 00:19:52]} Bc8 {[%clk 00:24:25]} {[%emt
00:02:37]} 44. Ra7+ {[%clk 00:19:21]} {[%emt 00:01:02]} Bb7 {[%clk 00:24:03]}
{[%emt 00:00:51]} 45. Ra5 {[%clk 00:19:24]} {[%emt 00:00:27]} Rb2 {[%clk
00:23:08]} {[%emt 00:01:25]} 46. Kf1 {[%clk 00:18:43]} {[%emt 00:01:11]} Rb1+
{[%clk 00:16:03]} {[%emt 00:07:36]} 47. Kg2 {[%clk 00:18:50]} {[%emt 00:00:22]}
Rb2 {[%clk 00:12:52]} {[%emt 00:03:41]} 48. Kf1 {[%clk 00:19:13]} {[%emt
00:00:07]} Kb6 {[%clk 00:13:11]} {[%emt 00:00:12]} 49. Rc5 {[%clk 00:17:56]}
{[%emt 00:01:47]} Ra2 {[%clk 00:09:10]} {[%emt 00:04:31]} 50. Rc1 {[%clk
00:17:12]} {[%emt 00:01:12]} Ba6 {[%clk 00:08:26]} {[%emt 00:01:16]} 51. Bxa6
{[%clk 00:16:35]} {[%emt 00:01:07]} Rxa6 {[%clk 00:08:53]} {[%emt 00:00:02]} 52.
Rb1+ {[%clk 00:16:51]} {[%emt 00:00:14]} Kc7 {[%clk 00:09:21]} {[%emt
00:00:02]} 53. Kg2 {[%clk 00:17:05]} {[%emt 00:00:16]} Ra2 {[%clk 00:08:48]}
{[%emt 00:01:03]} 54. Rb3 {[%clk 00:16:36]} {[%emt 00:01:00]} g5 {[%clk
00:08:03]} {[%emt 00:01:15]} 55. Rb4 {[%clk 00:13:25]} {[%emt 00:03:41]} Rd2
{[%clk 00:03:43]} {[%emt 00:04:49]} 56. Ra4 {[%clk 00:12:32]} {[%emt 00:01:23]}
Kd6 {[%clk 00:02:29]} {[%emt 00:01:44]} 57. Kf3 {[%clk 00:08:43]} {[%emt
00:04:19]} f4 {[%clk 00:01:11]} {[%emt 00:01:48]} 58. gxf4 {[%clk 00:08:39]}
{[%emt 00:00:34]} gxf4 {[%clk 00:01:35]} {[%emt 00:00:06]} 59. Ra8 {[%clk
00:02:11]} {[%emt 00:06:58]} fxe3 {[%clk 00:01:57]} {[%emt 00:00:08]} 60. Kxe3
{[%clk 00:02:34]} {[%emt 00:00:07]} Rc2 {[%clk 00:02:02]} {[%emt 00:00:25]} 61.
Rd8+ {[%clk 00:02:30]} {[%emt 00:00:34]} Ke6 {[%clk 00:01:43]} {[%emt
00:00:50]} 62. Rh8 {[%clk 00:01:59]} {[%emt 00:01:00]} Rc3+ {[%clk 00:02:06]}
{[%emt 00:00:08]} 63. Kf4 {[%clk 00:02:05]} {[%emt 00:00:24]} Rh3 {[%clk
00:02:22]} {[%emt 00:00:12]} 64. Re8+ {[%clk 00:01:42]} {[%emt 00:00:55]} Kd7
{[%clk 00:02:24]} {[%emt 00:00:27]} 65. Rh8 {[%clk 00:01:17]} {[%emt 00:00:55]}
Rxh2 {[%clk 00:01:45]} {[%emt 00:01:09]} 66. f3 {[%clk 00:01:20]} {[%emt
00:00:27]} h4 {[%clk 00:00:52]} {[%emt 00:01:23]} 67. Kf5 {[%clk 00:01:08]}
{[%emt 00:00:42]} h3 {[%clk 00:00:52]} {[%emt 00:00:30]} 68. Kxf6 {[%clk
00:01:03]} {[%emt 00:00:36]} Rh1 {[%clk 00:01:08]} {[%emt 00:00:13]} 69. f4
{[%clk 00:01:06]} {[%emt 00:00:27]} h2 {[%clk 00:01:23]} {[%emt 00:00:16]} 70.
Rh7+ {[%clk 00:01:07]} {[%emt 00:00:28]} Kd6 {[%clk 00:01:30]} {[%emt
00:00:23]} 71. f5 {[%clk 00:01:11]} {[%emt 00:00:26]} c5 {[%clk 00:01:44]}
{[%emt 00:00:16]} 72. dxc5+ {[%clk 00:01:32]} {[%emt 00:00:09]} Kxc5 {[%clk
00:02:13]} {[%emt 00:00:02]} 73. Rh4 {[%clk 00:01:28]} {[%emt 00:00:34]} d4
{[%clk 00:02:27]} {[%emt 00:00:16]} 74. Kf7 {[%clk 00:01:24]} {[%emt 00:00:34]}
d3 {[%clk 00:02:29]} {[%emt 00:00:28]} 75. f6 {[%clk 00:01:35]} {[%emt
00:00:18]} d2 {[%clk 00:02:51]} {[%emt 00:00:08]} 0-1

[Event "NJSK 2023 Jeugd B"]
[Site "Almelo, Netherlands"]
[Date "2023.05.01"]
[Round "2.4"]
[White "Van Foreest, Nanne"]
[Black "Blom, Rens"]
[Result "1-0"]
[TimeControl "90min/40moves + 30min + 30sec/move"]
[WhiteElo "1893"]
[BlackElo "1747"]

1. e4 {[%clk 01:30:57]} {[%emt 00:00:02]} d6 {[%clk 01:30:55]} {[%emt
00:00:06]} 2. d4 {[%clk 01:31:18]} {[%emt 00:00:10]} Nf6 {[%clk 01:31:18]}
{[%emt 00:00:06]} 3. Nc3 {[%clk 01:31:44]} {[%emt 00:00:03]} g6 {[%clk
01:31:44]} {[%emt 00:00:05]} 4. Be3 {[%clk 01:32:10]} {[%emt 00:00:04]} Bg7
{[%clk 01:32:06]} {[%emt 00:00:09]} 5. Qd2 {[%clk 01:32:35]} {[%emt 00:00:05]}
O-O {[%clk 01:32:25]} {[%emt 00:00:10]} 6. f3 {[%clk 01:32:59]} {[%emt
00:00:06]} e5 {[%clk 01:31:53]} {[%emt 00:00:11]} 7. O-O-O {[%clk 01:31:03]}
{[%emt 00:03:17]} exd4 {[%clk 01:31:49]} {[%emt 00:00:34]} 8. Bxd4 {[%clk
01:31:18]} {[%emt 00:00:16]} Nc6 {[%clk 01:32:13]} {[%emt 00:00:06]} 9. Be3
{[%clk 01:30:57]} {[%emt 00:00:51]} a6 {[%clk 01:30:38]} {[%emt 00:02:04]} 10.
Nge2 {[%clk 01:27:35]} {[%emt 00:03:51]} b5 {[%clk 01:24:10]} {[%emt 00:06:59]}
11. Bh6 {[%clk 01:14:44]} {[%emt 00:13:20]} Ne5 {[%clk 01:07:27]} {[%emt
00:17:14]} 12. Bxg7 {[%clk 01:13:27]} {[%emt 00:01:47]} Kxg7 {[%clk 01:07:01]}
{[%emt 00:00:56]} 13. Nf4 {[%clk 01:12:40]} {[%emt 00:01:16]} b4 {[%clk
00:54:45]} {[%emt 00:12:47]} 14. Ncd5 {[%clk 01:09:58]} {[%emt 00:03:12]} a5
{[%clk 00:53:54]} {[%emt 00:01:21]} 15. h4 {[%clk 01:08:58]} {[%emt 00:01:29]}
b3 {[%clk 00:40:24]} {[%emt 00:14:01]} 16. axb3 {[%clk 01:07:48]} {[%emt
00:01:40]} a4 {[%clk 00:39:59]} {[%emt 00:00:55]} 17. h5 {[%clk 01:07:53]}
{[%emt 00:00:24]} axb3 {[%clk 00:38:54]} {[%emt 00:01:36]} 18. cxb3 {[%clk
01:07:06]} {[%emt 00:01:18]} g5 {[%clk 00:23:51]} {[%emt 00:15:32]} 19. h6+
{[%clk 00:49:49]} {[%emt 00:17:45]} Kh8 {[%clk 00:23:43]} {[%emt 00:00:39]} 20.
Nd3 {[%clk 00:49:38]} {[%emt 00:00:41]} Nxd5 {[%clk 00:23:21]} {[%emt
00:00:53]} 21. Nxe5 {[%clk 00:45:54]} {[%emt 00:04:14]} Ra1+ {[%clk 00:15:59]}
{[%emt 00:07:52]} 22. Kc2 {[%clk 00:46:01]} {[%emt 00:00:23]} Rxd1 {[%clk
00:15:51]} {[%emt 00:00:37]} 23. Kxd1 {[%clk 00:46:25]} {[%emt 00:00:06]} dxe5
{[%clk 00:15:54]} {[%emt 00:00:27]} 24. Qxd5 {[%clk 00:46:47]} {[%emt
00:00:08]} Qxd5+ {[%clk 00:16:03]} {[%emt 00:00:22]} 25. exd5 {[%clk 00:47:10]}
{[%emt 00:00:07]} Rd8 {[%clk 00:16:24]} {[%emt 00:00:10]} 26. Kc2 {[%clk
00:47:03]} {[%emt 00:00:36]} Rxd5 {[%clk 00:16:13]} {[%emt 00:00:40]} 27. Bc4
{[%clk 00:47:20]} {[%emt 00:00:13]} Bf5+ {[%clk 00:14:24]} {[%emt 00:02:19]} 28.
Kc3 {[%clk 00:46:51]} {[%emt 00:01:01]} Rd6 {[%clk 00:10:47]} {[%emt 00:04:07]}
29. Ra1 {[%clk 00:46:26]} {[%emt 00:00:54]} Rxh6 {[%clk 00:10:18]} {[%emt
00:00:59]} 30. Ra7 {[%clk 00:46:21]} {[%emt 00:00:35]} Rh2 {[%clk 00:08:53]}
{[%emt 00:01:55]} 31. Rxc7 {[%clk 00:39:01]} {[%emt 00:07:50]} Rxg2 {[%clk
00:09:07]} {[%emt 00:00:16]} 32. Rxf7 {[%clk 00:39:24]} {[%emt 00:00:06]} Rc2+
{[%clk 00:08:43]} {[%emt 00:00:54]} 33. Kb4 {[%clk 00:39:53]} {[%emt 00:00:02]}
Bg6 {[%clk 00:09:00]} {[%emt 00:00:13]} 34. Re7 {[%clk 00:40:10]} {[%emt
00:00:13]} e4 {[%clk 00:07:28]} {[%emt 00:02:02]} 35. fxe4 {[%clk 00:35:45]}
{[%emt 00:04:55]} g4 {[%clk 00:07:52]} {[%emt 00:00:06]} 36. Rd7 {[%clk
00:35:24]} {[%emt 00:00:51]} Bxe4 {[%clk 00:05:25]} {[%emt 00:02:57]} 37. Rd8+
{[%clk 00:34:56]} {[%emt 00:00:58]} Kg7 {[%clk 00:05:48]} {[%emt 00:00:07]} 38.
Rg8+ {[%clk 00:35:24]} {[%emt 00:00:02]} Kf6 {[%clk 00:06:05]} {[%emt
00:00:12]} 39. Rxg4 {[%clk 00:35:46]} {[%emt 00:00:09]} Bf5 {[%clk 00:05:30]}
{[%emt 00:01:06]} 40. Rf4 {[%clk 00:36:13]} {[%emt 00:00:02]} Kg5 {[%clk
00:05:03]} {[%emt 00:00:57]} 41. Rxf5+ {[%clk 00:36:30]} {[%emt 00:00:13]} Kg6
{[%clk 00:03:07]} {[%emt 00:02:26]} 42. Bd3 {[%clk 00:35:54]} {[%emt 00:01:06]}
Rd2 {[%clk 00:03:15]} {[%emt 00:00:22]} 43. Rf3+ {[%clk 00:36:15]} {[%emt
00:00:08]} 1-0

[Event "NJSK 2023 Jeugd B"]
[Site "Almelo, Netherlands"]
[Date "2023.05.01"]
[Round "2.5"]
[White "Labruyere, Roger"]
[Black "Snijders, Take"]
[Result "1-0"]
[TimeControl "90min/40moves + 30min + 30sec/move"]
[WhiteElo "2160"]
[BlackElo "1851"]

1. e4 {[%clk 01:30:59]} {[%emt 02:05:57]} c5 {[%clk 01:30:55]} {[%emt
00:00:06]} 2. Nf3 {[%clk 01:31:24]} {[%emt 00:00:05]} e6 {[%clk 01:31:19]}
{[%emt 00:00:06]} 3. c3 {[%clk 01:31:47]} {[%emt 00:00:07]} d5 {[%clk
01:31:33]} {[%emt 00:00:16]} 4. exd5 {[%clk 01:31:44]} {[%emt 00:00:33]} Qxd5
{[%clk 01:31:54]} {[%emt 00:00:09]} 5. d4 {[%clk 01:32:05]} {[%emt 00:00:09]}
Nf6 {[%clk 01:32:04]} {[%emt 00:00:20]} 6. Na3 {[%clk 01:31:55]} {[%emt
00:00:41]} a6 {[%clk 01:31:56]} {[%emt 00:00:38]} 7. Nc2 {[%clk 01:32:18]}
{[%emt 00:00:06]} Nc6 {[%clk 01:31:55]} {[%emt 00:00:31]} 8. Bd3 {[%clk
01:32:29]} {[%emt 00:00:19]} cxd4 {[%clk 01:32:01]} {[%emt 00:00:24]} 9. Ncxd4
{[%clk 01:32:46]} {[%emt 00:00:13]} Nxd4 {[%clk 01:32:15]} {[%emt 00:00:15]} 10.
cxd4 {[%clk 01:32:54]} {[%emt 00:00:23]} Bb4+ {[%clk 01:29:11]} {[%emt
00:03:34]} 11. Bd2 {[%clk 01:32:34]} {[%emt 00:00:50]} Bxd2+ {[%clk 01:29:31]}
{[%emt 00:00:10]} 12. Qxd2 {[%clk 01:33:00]} {[%emt 00:00:04]} O-O {[%clk
01:29:07]} {[%emt 00:00:54]} 13. O-O {[%clk 01:31:23]} {[%emt 00:02:07]} Bd7
{[%clk 01:28:14]} {[%emt 00:01:23]} 14. Rfe1 {[%clk 01:27:20]} {[%emt
00:04:32]} Rac8 {[%clk 01:24:32]} {[%emt 00:04:13]} 15. Qf4 {[%clk 01:07:33]}
{[%emt 00:20:17]} Bc6 {[%clk 01:14:51]} {[%emt 00:10:11]} 16. b3 {[%clk
01:00:38]} {[%emt 00:07:25]} Rfd8 {[%clk 01:09:22]} {[%emt 00:05:59]} 17. Rad1
{[%clk 00:58:04]} {[%emt 00:03:04]} Qa5 {[%clk 01:03:08]} {[%emt 00:06:44]} 18.
Ne5 {[%clk 00:50:32]} {[%emt 00:08:02]} Be8 {[%clk 00:47:48]} {[%emt 00:15:50]}
19. Bb1 {[%clk 00:49:52]} {[%emt 00:01:10]} Rc3 {[%clk 00:44:21]} {[%emt
00:03:56]} 20. Qd2 {[%clk 00:32:39]} {[%emt 00:17:43]} Rdc8 {[%clk 00:28:29]}
{[%emt 00:16:22]} 21. h3 {[%clk 00:18:06]} {[%emt 00:15:04]} Qb4 {[%clk
00:25:42]} {[%emt 00:03:17]} 22. Qf4 {[%clk 00:16:16]} {[%emt 00:02:19]} R3c7
{[%clk 00:21:45]} {[%emt 00:04:28]} 23. Qh4 {[%clk 00:11:32]} {[%emt 00:05:13]}
h6 {[%clk 00:20:27]} {[%emt 00:01:49]} 24. Nd3 {[%clk 00:11:00]} {[%emt
00:01:02]} Qe7 {[%clk 00:18:28]} {[%emt 00:02:30]} 25. Nc5 {[%clk 00:11:14]}
{[%emt 00:00:15]} Nd5 {[%clk 00:17:15]} {[%emt 00:01:43]} 26. Qe4 {[%clk
00:09:45]} {[%emt 00:01:58]} Nf6 {[%clk 00:17:29]} {[%emt 00:00:16]} 27. Qd3
{[%clk 00:08:06]} {[%emt 00:02:09]} Bb5 {[%clk 00:16:29]} {[%emt 00:01:31]} 28.
Qg3 {[%clk 00:08:22]} {[%emt 00:00:13]} b6 {[%clk 00:16:15]} {[%emt 00:00:45]}
29. Ne4 {[%clk 00:07:34]} {[%emt 00:01:17]} Nxe4 {[%clk 00:16:31]} {[%emt
00:00:14]} 30. Bxe4 {[%clk 00:08:01]} {[%emt 00:00:04]} Qa3 {[%clk 00:15:29]}
{[%emt 00:01:32]} 31. Bb1 {[%clk 00:07:24]} {[%emt 00:01:07]} Rc3 {[%clk
00:13:27]} {[%emt 00:02:32]} 32. Qe5 {[%clk 00:06:37]} {[%emt 00:01:16]} Bc6
{[%clk 00:13:04]} {[%emt 00:00:54]} 33. Re3 {[%clk 00:03:52]} {[%emt 00:03:15]}
Rc1 {[%clk 00:12:46]} {[%emt 00:00:48]} 34. Rde1 {[%clk 00:04:14]} {[%emt
00:00:07]} Bd5 {[%clk 00:12:13]} {[%emt 00:01:03]} 35. Kh2 {[%clk 00:03:40]}
{[%emt 00:01:04]} Qb2 {[%clk 00:10:04]} {[%emt 00:02:40]} 36. Rxc1 {[%clk
00:03:11]} {[%emt 00:00:58]} Qxc1 {[%clk 00:10:11]} {[%emt 00:00:23]} 37. Rg3
{[%clk 00:03:24]} {[%emt 00:00:18]} g5 {[%clk 00:08:09]} {[%emt 00:02:32]} 38.
Qf6 {[%clk 00:02:09]} {[%emt 00:01:44]} Qxb1 {[%clk 00:07:25]} {[%emt
00:01:14]} 39. Qxh6 {[%clk 00:02:34]} {[%emt 00:00:04]} Be4 {[%clk 00:07:39]}
{[%emt 00:00:18]} 40. Rxg5+ {[%clk 00:02:50]} {[%emt 00:00:14]} Bg6 {[%clk
00:08:02]} {[%emt 00:00:07]} 41. Rg4 {[%clk 00:20:42]} {[%emt 00:12:37]} Qf5
{[%clk 00:24:41]} {[%emt 00:13:51]} 42. Rh4 {[%clk 00:20:15]} {[%emt 00:00:57]}
Qf6 {[%clk 00:24:50]} {[%emt 00:00:21]} 43. Rf4 {[%clk 00:20:18]} {[%emt
00:00:26]} Qg7 {[%clk 00:22:30]} {[%emt 00:02:52]} 44. Qg5 {[%clk 00:20:41]}
{[%emt 00:00:06]} e5 {[%clk 00:16:30]} {[%emt 00:06:30]} 45. dxe5 {[%clk
00:20:04]} {[%emt 00:01:07]} Re8 {[%clk 00:16:52]} {[%emt 00:00:09]} 46. Rf6
{[%clk 00:19:50]} {[%emt 00:00:44]} Bb1 {[%clk 00:14:41]} {[%emt 00:02:41]} 47.
Qxg7+ {[%clk 00:18:23]} {[%emt 00:01:56]} Kxg7 {[%clk 00:15:09]} {[%emt
00:00:01]} 48. Rxb6 {[%clk 00:18:44]} {[%emt 00:00:10]} Bxa2 {[%clk 00:15:15]}
{[%emt 00:00:24]} 49. Rxa6 {[%clk 00:19:07]} {[%emt 00:00:07]} Bxb3 {[%clk
00:15:37]} {[%emt 00:00:08]} 50. f4 {[%clk 00:19:34]} {[%emt 00:00:03]} Rc8
{[%clk 00:13:34]} {[%emt 00:02:34]} 51. Ra3 {[%clk 00:18:08]} {[%emt 00:01:56]}
Bd5 {[%clk 00:12:33]} {[%emt 00:01:31]} 52. g4 {[%clk 00:18:09]} {[%emt
00:00:29]} Rc2+ {[%clk 00:11:27]} {[%emt 00:01:36]} 53. Kg3 {[%clk 00:18:17]}
{[%emt 00:00:21]} Rg2+ {[%clk 00:10:48]} {[%emt 00:01:10]} 54. Kh4 {[%clk
00:18:41]} {[%emt 00:00:05]} Ra2 {[%clk 00:10:10]} {[%emt 00:01:09]} 55. Rd3
{[%clk 00:17:22]} {[%emt 00:01:49]} Ra5 {[%clk 00:09:58]} {[%emt 00:00:42]} 56.
Re3 {[%clk 00:16:28]} {[%emt 00:01:23]} Rb5 {[%clk 00:09:56]} {[%emt 00:00:32]}
57. Rd3 {[%clk 00:12:54]} {[%emt 00:04:03]} Bg2 {[%clk 00:09:50]} {[%emt
00:00:37]} 58. Kg5 {[%clk 00:09:35]} {[%emt 00:03:49]} Rd5 {[%clk 00:08:24]}
{[%emt 00:01:57]} 59. Re3 {[%clk 00:08:01]} {[%emt 00:02:04]} Bf1 {[%clk
00:07:58]} {[%emt 00:00:56]} 60. h4 {[%clk 00:06:17]} {[%emt 00:02:14]} Bd3
{[%clk 00:07:41]} {[%emt 00:00:47]} 61. f5 {[%clk 00:05:47]} {[%emt 00:00:59]}
Bc4 {[%clk 00:07:05]} {[%emt 00:01:07]} 62. Re4 {[%clk 00:01:47]} {[%emt
00:04:29]} Bd3 {[%clk 00:07:18]} {[%emt 00:00:18]} 63. Re1 {[%clk 00:01:21]}
{[%emt 00:00:56]} Bc4 {[%clk 00:07:35]} {[%emt 00:00:13]} 64. h5 {[%clk
00:01:17]} {[%emt 00:00:33]} Kh7 {[%clk 00:07:38]} {[%emt 00:00:28]} 65. Kf6
{[%clk 00:01:33]} {[%emt 00:00:13]} Kh6 {[%clk 00:07:50]} {[%emt 00:00:18]} 66.
Rh1 {[%clk 00:01:35]} {[%emt 00:00:28]} Ra5 {[%clk 00:06:33]} {[%emt 00:01:48]}
67. g5 {[%clk 00:02:02]} {[%emt 00:00:03]} Kh7 {[%clk 00:06:57]} {[%emt
00:00:05]} 68. g6+ {[%clk 00:02:31]} {[%emt 00:00:02]} Kg8 {[%clk 00:06:31]}
{[%emt 00:00:56]} 69. gxf7+ {[%clk 00:02:02]} {[%emt 00:00:58]} Bxf7 {[%clk
00:06:59]} {[%emt 00:00:02]} 70. Rg1+ {[%clk 00:02:13]} {[%emt 00:00:19]} Kf8
{[%clk 00:07:22]} {[%emt 00:00:07]} 71. e6 {[%clk 00:02:16]} {[%emt 00:00:27]}
Bxh5 {[%clk 00:07:29]} {[%emt 00:00:23]} 72. e7+ {[%clk 00:02:42]} {[%emt
00:00:05]} Ke8 {[%clk 00:07:53]} {[%emt 00:00:06]} 73. Rg8+ {[%clk 00:03:07]}
{[%emt 00:00:04]} Kd7 {[%clk 00:08:15]} {[%emt 00:00:09]} 74. Rd8+ {[%clk
00:03:16]} {[%emt 00:00:21]} Kc7 {[%emt 00:01:29]} 75. Rh8 {[%clk 00:02:35]}
Ra6+ {[%clk 00:07:46]} {[%emt 00:01:10]} 76. Kg7 {[%clk 00:02:59]} {[%emt
00:00:05]} Kd7 {[%clk 00:07:34]} {[%emt 00:00:43]} 77. f6 {[%clk 00:03:23]}
{[%emt 00:00:05]} Be8 {[%clk 00:06:38]} {[%emt 00:01:27]} 78. f7 {[%clk
00:03:06]} {[%emt 00:00:46]} Ra8 {[%clk 00:06:24]} {[%emt 00:00:44]} 79. f8=Q
{[%clk 00:03:29]} {[%emt 00:00:07]} 1-0

[Event "NJSK 2023 Jeugd B"]
[Site "Almelo, Netherlands"]
[Date "2023.05.01"]
[Round "2.6"]
[White "Guillaumond, Matthieu"]
[Black "Ritzerveld, Noah"]
[Result "0-1"]
[TimeControl "90min/40moves + 30min + 30sec/move"]
[WhiteElo "2010"]
[BlackElo "1776"]

1. e4 {[%clk 01:30:58]} {[%emt 00:00:02]} e5 {[%clk 01:30:53]} {[%emt
00:00:08]} 2. Nf3 {[%clk 01:31:23]} {[%emt 00:00:04]} Nc6 {[%clk 01:31:18]}
{[%emt 00:00:05]} 3. Bb5 {[%clk 01:31:49]} {[%emt 00:00:05]} a6 {[%clk
01:31:41]} {[%emt 00:00:07]} 4. Ba4 {[%clk 01:32:14]} {[%emt 00:00:04]} Nf6
{[%clk 01:31:53]} {[%emt 00:00:18]} 5. O-O {[%clk 01:32:36]} {[%emt 00:00:09]}
Be7 {[%clk 01:32:11]} {[%emt 00:00:11]} 6. Re1 {[%clk 01:32:57]} {[%emt
00:00:09]} b5 {[%clk 01:32:31]} {[%emt 00:00:10]} 7. Bb3 {[%clk 01:33:21]}
{[%emt 00:00:06]} O-O {[%clk 01:32:37]} {[%emt 00:00:23]} 8. h3 {[%clk
01:33:38]} {[%emt 00:00:13]} Bb7 {[%clk 01:28:56]} {[%emt 00:04:12]} 9. c3
{[%clk 01:32:34]} {[%emt 00:01:33]} d5 {[%clk 01:27:44]} {[%emt 00:01:43]} 10.
exd5 {[%clk 01:27:19]} {[%emt 00:05:44]} Nxd5 {[%clk 01:27:55]} {[%emt
00:00:19]} 11. d4 {[%clk 01:22:28]} {[%emt 00:05:22]} exd4 {[%clk 01:26:17]}
{[%emt 00:02:08]} 12. Nxd4 {[%clk 01:16:35]} {[%emt 00:06:23]} Nxd4 {[%clk
01:24:01]} {[%emt 00:02:45]} 13. cxd4 {[%clk 01:15:42]} {[%emt 00:01:24]} Bd6
{[%clk 01:19:53]} {[%emt 00:04:37]} 14. Qf3 {[%clk 01:07:09]} {[%emt 00:09:03]}
Rb8 {[%clk 01:13:05]} {[%emt 00:07:19]} 15. Bxd5 {[%clk 01:03:45]} {[%emt
00:03:53]} Bxd5 {[%clk 01:13:25]} {[%emt 00:00:10]} 16. Qd3 {[%clk 01:02:59]}
{[%emt 00:01:16]} Qh4 {[%clk 00:53:57]} {[%emt 00:19:59]} 17. Be3 {[%clk
00:56:38]} {[%emt 00:06:50]} f5 {[%clk 00:51:58]} {[%emt 00:02:29]} 18. Nc3
{[%clk 00:30:41]} {[%emt 00:26:28]} Bc4 {[%clk 00:41:23]} {[%emt 00:11:05]} 19.
Qc2 {[%clk 00:29:41]} {[%emt 00:01:30]} f4 {[%clk 00:41:43]} {[%emt 00:00:10]}
20. Bd2 {[%clk 00:24:30]} {[%emt 00:05:41]} f3 {[%clk 00:33:45]} {[%emt
00:08:28]} 21. Qe4 {[%clk 00:24:06]} {[%emt 00:00:53]} Bh2+ {[%clk 00:25:06]}
{[%emt 00:09:10]} 22. Kxh2 {[%clk 00:14:10]} {[%emt 00:10:26]} Qxf2 {[%clk
00:25:27]} {[%emt 00:00:08]} 23. Qg4 {[%clk 00:14:30]} {[%emt 00:00:10]} Qxd2
{[%clk 00:25:47]} {[%emt 00:00:10]} 24. Re7 {[%clk 00:12:28]} {[%emt 00:02:32]}
Qh6 {[%clk 00:25:59]} {[%emt 00:00:19]} 25. gxf3 {[%clk 00:12:01]} {[%emt
00:00:57]} Rb6 {[%clk 00:11:53]} {[%emt 00:14:36]} 26. Kh1 {[%clk 00:01:08]}
{[%emt 00:11:23]} Rg6 {[%clk 00:11:56]} {[%emt 00:00:27]} 27. Qd7 {[%clk
00:00:48]} {[%emt 00:00:51]} Be6 {[%clk 00:12:20]} {[%emt 00:00:06]} 28. Rxe6
{[%clk 00:00:35]} {[%emt 00:00:42]} Qxh3# {[%clk 00:12:43]} {[%emt 00:00:06]}
0-1